Workbook

Sheet Student Technology Fee
A1: Student Technology Fee (102-6-590310)
A2: 2019-2020 Budget (FY20)
A4: Category | B4: FY 20 Actual | C4: FY21 Estimate | E4: FY20 Range | K4: FY21 Range
A5: Permanent Positions | B5: 152777.9011 | C5: ='Detail Analysis'!C5 -> 158950.1292 | E5: 135000 | F5: to | G5: 159000 | K5: 135000 | L5: to | M5: 159000
A6: Student Help | B6: 75075 | C6: ='Detail Analysis'!C6 -> 78454 | E6: 70000 | F6: to | G6: 80000 | K6: 70000 | L6: to | M6: 80000
A7: Fringe Benefits | B7: 1085.994 | C7: ='Detail Analysis'!C7 -> 1085.994 | E7: 1000 | F7: to | G7: 3000 | K7: 1000 | L7: to | M7: 3000
A8: Software Licenses/Fees | B8: 119495.4 | C8: ='Detail Analysis'!C21 -> 111749.4 | E8: 100000 | F8: to | G8: 160000 | K8: 100000 | L8: to | M8: 160000
A9: Mobile Printers | B9: 28000 | C9: ='Detail Analysis'!C22 -> 28000 | E9: 20000 | F9: to | G9: 30000 | K9: 20000 | L9: to | M9: 30000
A10: Internet Access (WiscNet, etc...) | B10: 46067.51 | C10: ='Detail Analysis'!C23 -> 34650 | E10: 35000 | F10: to | G10: 90000 | K10: 35000 | L10: to | M10: 90000
A11: Equipment Rotations- GA Labs | B11: 100000 | C11: ='Detail Analysis'!C27 -> 100000 | E11: 75000 | F11: to | G11: 100000 | K11: 75000 | L11: to | M11: 100000
A12: Equipment Checkout | B12: 60350 | C12: ='Detail Analysis'!C24 -> 60350 | E12: 60000 | F12: to | G12: 70000 | K12: 60000 | L12: to | M12: 70000
A13: Back Office | B13: 400000 | C13: ='Detail Analysis'!C25 -> 400000 | E13: 400000 | F13: to | G13: 500000 | K13: 400000 | L13: to | M13: 500000
A14: Library Public Stations | B14: 28000 | C14: ='Detail Analysis'!C26 -> 28000 | E14: 25000 | F14: to | G14: 30000 | K14: 25000 | L14: to | M14: 30000
A15: Innovative Programs | B15: 78000 | C15: 90000 | E15: 50000 | F15: to | G15: 100000 | K15: 50000 | L15: to | M15: 100000
A18: Budgeted: | B18: =SUM(B5:B15) -> 1088851.805 | C18: ='Detail Analysis'!C34 -> 1104239.523
A19: Contingency: | B19: =B20-B18 -> 1405.19488 | C19: =C20-C18 -> -3079.9532
A20: GRAND TOTAL: | B20: 1090257 | C20: 1101159.57
A22: Notes on changes:
A23: 5 year plan to end funding for Canvas (-$6,000/year) Suspended due to COVID
A24: Internet access was artificially kept low for this year due to a grant
A25: Innovation Labs has it's own line item now, monies used on that line taken from Other Projects
A26: Student pay increased by 4% - LTS initiative
A27: Due to COVID-19, we expect a large carryover into next year. This should cover well past the negative contingency.

Sheet Detail Analysis
A1: Student Technology Fee (102-6-590310) | C1: FY21 Est.
A2: Budget (FY20) | B2: =1101159.57 -> 1101159.57 | C2: =B2*1.01 -> 1112171.166
D3: % change
A4: SALARIES
A5: Full Time Staff | B5: 155833.46 | C5: =B5*1.02 -> 158950.1292 | D5: =(C5-B5)/C5 -> 0.01960784314
A6: Student Staff | B6: 75075 | C6: 78454 | D6: =(C6-B6)/C6 -> 0.04306982436
A7: Fringe Benefits | B7: 1064.7 | C7: =B7*1.02 -> 1085.994 | D7: =(C7-B7)/C7 -> 0.01960784314
A8: Salaries Total | B8: =SUM(B5:B7) -> 231973.16 | C8: =SUM(C5:C7) -> 238490.1232 | D8: =(C8-B8)/C8 -> 0.02732592492
A11: SERVICES AND SUPPLIES
A12: Estimated Raises | B12: 2% FY10 | D12: =(C12-B12)/C12 -> 
A13: Unclassified | B13: 0.02
A14: Classified/LTE | B14: 0.02
A16: Fringes
A17: Unclassified/Classified | B17: 0.219
A18: LTE | B18: 0.1358
A19: Student Help | B19: 0.014
A21: Software Licenses and Fees | B21: 119495 | C21: =Breakout!B9 -> 111749.4 | D21: -0.06931222897
A22: Mobile Printers | B22: 28000 | C22: =B22 -> 28000 | D22: 0
A23: Internet Access | B23: 42592 | C23: 34650 | D23: -0.2292063492
A24: Checkout Pool Equipment | B24: 60350 | C24: =B24 -> 60350 | D24: 0
A25: Back Office Rotation | B25: 400000 | C25: =B25 -> 400000 | D25: 0
A26: Library Public Access Machines | B26: 28000 | C26: =B26 -> 28000 | D26: 0
A27: Standup Labs and Group Rooms Rotation | B27: 100000 | C27: =B27 -> 100000 | D27: 0
A28: Innovation Labs | B28: 0 | C28: 30000 | D28: 1
A29: Open Eau Claire | B29: 16000 | C29: 16000 | D29: 0
A30: Students with Disabilities | B30: 7000 | C30: 9000 | D30: 0.2222222222
A31: Other Innovative Projects | B31: 60000 | C31: 48000 | D31: -0.25
A32: S&S total | B32: =SUM(B21:B31) -> 861437 | C32: =SUM(C21:C31) -> 865749.4 | D32: 0.004981118093
A34: Salary and S&S total | B34: =SUM(B32,B8) -> 1093410.16 | C34: =SUM(C32,C8) -> 1104239.523
A35: Contingency | B35: =B2-B34 -> 7749.41 | C35: =C2-C34 -> 7931.6425 | D35: =C35/C2 -> 0.007131674282

Sheet Breakout
A1: Software License and Fees
A2: Title | B2: Amount | C2: % of total | D2: Description
A3: Software licenses-Canvas | B3: 30984 | C3: 0.4 | D3: *5 year plan to end funding for Canvas (-$6,000/year)
A4: MS license | B4: 33345.4 | C4: 0.4 | D4: Microsoft License and Fees
A5: Access fee labs | B5: 14550 | C5: 1
A6: Library Software Support | B6: 10890 | C6: 1 | D6: LTS Software Support Fee - frozen since FY15
A7: JSTOR Maintenance | B7: 3180 | C7: 0.03
A8: DUO | B8: 18800 | C8: 0.4 | D8: 2 Factor Authentication
A9: Total: | B9: =SUM(B3:B8) -> 111749.4
A10: Internet Access
A11: SysNet, Level 3, CESA | B11: =77000*0.45 -> 34650 | C11: 0.45 | D11: Artificially low due to grant

Sheet Salaries
A1: SALARIES
A2: Staff | B2: % of salary covered | C2: Base | D2: Unclass | E2: Class
A3: Lab support-info process cons | B3: 0.4 | C3: 63251 | D3: =(C3*0.4) -> 25300.4
A4: Help Desk coord--IS spec | B4: 1 | C4: 61721 | E4: 61721
A5: BITS/OL1108--IS spec | B5: 1 | C5: 57000 | E5: 57000
D6: =SUM(D3:D5) -> 25300.4 | E6: =SUM(E3:E5) -> 118721
D7: Total Staff Salaries | E7: =E6+D6 -> 144021.4
A9: Student Employees | E9: Non-fed
A10: Library laptop checkout | E10: 16800
A11: LTS GA lab support | E11: 25200
A12: LTS Helpdesk/Training | E12: 26250
D13: Total Student Salaries | E13: =SUM(E10:E12) -> 68250
A14: Subtotals
D15: Total Staff Salaries | E15: =E7 -> 144021.4
D16: Total Student Salaries | E16: 68250
D17: Fringe Calc Amt | E17: =(E13*0.015) -> 1023.75
D18: Total Labor Salaries | E18: =SUM(E15:E17) -> 213295.15

Sheet Spring 2018 Attendance (hidden)
A1: Last | B1: First | C1: Count | D1: 2018-02-07 | E1: 2018-02-21 | F1: 2018-02-28 | G1: 2018-03-28
A2: Markgraf | B2: Jill | C2: =COUNTIF(D2:U2,"*") -> 4 | D2: x | E2: x | F2: x | G2: x
A3: Stombough | B3: Angie | C3: =COUNTIF(D3:U3,"*") -> 3 | E3: x | F3: x | G3: x
A4: Jonathan | B4: Butz | C4: 0
A5: Haideman | B5: Kristina | C5: 4 | D5: x | E5: x | F5: x | G5: x
A6: Gerberich | B6: Kent | C6: 3 | D6: x | F6: x | G6: x
A7: Miller | B7: David | C7: 4 | D7: x | E7: x | F7: x | G7: x
A8: Romero | B8: Quinn | C8: 0
A9: Sunny | B9: Chen | C9: 4 | D9: x | E9: x | F9: x | G9: x
A10: Brower | B10: Sarah | C10: 3 | D10: x | E10: x | F10: x
A11: VandenHeuvel | B11: Bryce | C11: 4 | D11: x | E11: x | F11: x | G11: x
A12: Akey | B12: Andrew | C12: 0
A13: Hillis | B13: Dan | C13: 3 | D13: x | E13: x | F13: x
A14: Andrashko | B14: Corrisa | C14: 3 | E14: x | F14: x | G14: x
A15: Ernst | B15: Craig | C15: 4 | D15: x | E15: x | F15: x | G15: x
A16: Mumm | B16: Mike | C16: 2 | D16: x | E16: x
A17: Moldenhauer | B17: Zach | C17: 0
A18: Xiong | B18: David | C18: 3 | D18: x | E18: x | F18: x
A19: Yang | B19: Seng | C19: 3 | D19: x | E19: x | F19: x
A20: Vue | B20: Justin | C20: 3 | D20: x | F20: x | G20: x
A21: Mey | B21: Craig | C21: 4 | D21: x | E21: x | F21: x | G21: x
